Workbook

Sheet PFP
A1: PROPOSTA FINANCEIRA DO PROJETO | J1: CODIGO:
J2: PFP
A3: NOME DA CONSULTORA:
A5: PROJETO: | F5: CONTRATANTE: | J5: BASE:
A6: ELABORAÇÃO DE ESTUDO DE VIABILIDADE TÉCNICA, ECONÔMICA E AMBIENTAL, ESTUDOS BÁSICOS, PROJETO BÁSICO E PROJETO EXECUTIVO PARA CONSTRUÇÃO DE FEIRA POPULAR LOCALIZADA NO MUNICÍPIO DE SANTANA/AP | F6: CODEVASF (SEDE) | J6: 2023-11-01
A7: Base | B7: Código | D7: Categoria / Insumo | E7: Uni | F7: Qde | G7: CUD | H7: PU | I7: FatorK | J7: CT | K7: PT | L7: Encargos COMP E ADICIONAIS
A8: SICRO | B8: P8061 | D8: Engenheiro coordenador (P8061) | E8: mês | F8: ='CRO1_Ins-Pro'!D5 -> 0.7 | G8: 17126.55 | H8: =ROUND(I8*G8,2) -> 23396.58 | I8: =PFP2.3_FatorKc!E35 -> 1.3661 | J8: =ROUND(F8*G8,2) -> 11988.59 | K8: =ROUND(F8*H8,2) -> 16377.61 | L8: =14633.42-13607.04 -> 1026.38
A9: SICRO | B9: P8066 | D9: Engenheiro pleno (P8066) | E9: mês | F9: ='CRO1_Ins-Pro'!D6 -> 1.5 | G9: 11669.34 | H9: =ROUND(I9*G9,2) -> 26380.88 | I9: =PFP2.1_FatorKa!E35 -> 2.2607 | J9: =ROUND(F9*G9,2) -> 17504.01 | K9: 39571.32 | L9: =10299.82-9271.29 -> 1028.53
A10: SICRO | B10: P8065 | D10: Engenheiro júnior (P8065) | E10: mês | F10: ='CRO1_Ins-Pro'!D7 -> 2.4 | G10: 11220 | H10: =ROUND(I10*G10,2) -> 25365.05 | I10: =PFP2.1_FatorKa!E35 -> 2.2607 | J10: =ROUND(F10*G10,2) -> 26928 | K10: 60876.12 | L10: =9942.82-8914.29 -> 1028.53
A11: SINAPI | B11: 40807 | D11: Desenhista (40807) | E11: mês | F11: ='CRO1_Ins-Pro'!D8 -> 0.7 | G11: 2660.12 | H11: 6013.73 | I11: =PFP2.1_FatorKa!E35 -> 2.2607 | J11: 1862.08 | K11: 4209.61 | L11: =3022.03-1944.87 -> 1077.16
A12: SICRO | B12: P8014 | D12: Arquiteto Pleno (P8014) | E12: mês | F12: ='CRO1_Ins-Pro'!D9 -> 2 | G12: 11626.7 | H12: =ROUND(I12*G12,2) -> 26284.48 | I12: =PFP2.1_FatorKa!E35 -> 2.2607 | J12: 23253.4 | K12: 52568.96 | L12: =10248.27-9219.97 -> 1028.3
A13: SICRO | D13: Encargos Comp. e Adicionais | E13: mês | F13: =SUM(F8:F12) -> 7.3 | G13: =(F8*L8+F9*L9+F10*L10+F11*L11+F12*L12)/SUM(F8:F12) -> 1032.923973 | H13: 1315.74 | I13: =PFP3_FatorKd!$E$17 -> 1.2738 | J13: =ROUND(F13*G13,2) -> 7540.35 | K13: =ROUND(F13*H13,2) -> 9604.9
A14: PROP | B14: N.A | D14: Auxilio Transporte Técnicos | E14: mês | F14: ='CRO1_Ins-Pro'!D11 -> 0 | G14: Já incluso* | H14: 0 | I14: 0 | J14: 0 | K14: =ROUND(F14*H14,2) -> 0
A15: PROP | B15: N.A | D15: Auxilio Transporte Secretária | E15: mês | F15: ='CRO1_Ins-Pro'!D12 -> 0 | G15: Já Incluso* | H15: 0 | I15: 0 | J15: 0 | K15: 0
A16: CODE | B16: Próprio | D16: Relatório Parcial | E16: un | F16: ='CRO1_Ins-Pro'!D13 -> 0 | G16: 33.35 | H16: 42.48 | I16: =PFP3_FatorKd!$E$17 -> 1.2738 | J16: 0 | K16: =ROUND(F16*H16,2) -> 0
A17: CODE | B17: Próprio | D17: Relatório Final | E17: un | F17: ='CRO1_Ins-Pro'!D14 -> 4 | G17: 1478.8 | H17: 1883.7 | I17: =PFP3_FatorKd!$E$17 -> 1.2738 | J17: 5915.2 | K17: =ROUND(F17*H17,2) -> 7534.8
A18: CODE | B18: Próprio | D18: Total Serviços Cartográficos | E18: un | F18: 1 | G18: - | H18: =PFP1.1_Topo!G18 -> 5693.23 | I18: - | J18: - | K18: =ROUND(F18*H18,2) -> 5693.23
A19: CODE | B19: Próprio | D19: Total Serviços Geotécnicos | E19: un | F19: 1 | G19: - | H19: =PFP1.2_Geo!G22 -> 10443.8 | I19: - | J19: - | K19: =ROUND(F19*H19,2) -> 10443.8
A20: CODE | B20: Próprio | D20: Serviços Complementares | E20: un | F20: ='CRO1_Ins-Pro'!D17 -> 1 | G20: - | H20: =PFP1.3_Ger!G16 -> 17207.00281 | I20: - | J20: - | K20: =ROUND(F20*H20,2) -> 17207
A21: TOTAL DOS CUSTOS DIRETOS | H21: =SUM(J8:J20) -> 94991.63
A22: TOTAL DOS ENCARGOS E DISPESAS DIVERSAS | H22: =H23-H21 -> 95751.69
A23: TOTAL DA PROPOSTA A PREÇO GLOBAL | H23: =SUM(K8:K17) -> 190743.32
A24: TOTAL DA PROPOSTA A PREÇO UNITÁRIO | H24: =SUM(K18:K20) -> 33344.03
A25: TOTAL DA PROPOSTA | H25: =H23+H24 -> 224087.35
A26: OBSERVAÇÃO:
A27: *Encargos Complementares e adicionais já incluem auxílio transporte
A28: Alocar os Insumos MO, com respectivo FatorK, dentro da categoria de vínculo contratual (celetista, autonomo, societario)
A29: Uni - unidade de medição do insumo;
A30: Qde - Quantidade do Insumo (não pode ocorrer alteração pela Licitante)
A31: CUD - Custo Unitário Direto do Insumo (sem encargos, taxas e impostos, valor não pode ser maior que o Orçado pela Codevasf)
A32: CT - Custo Total (sem encargos, taxas e impostos) - CT = Qde x CUD
A33: FatorK - Taxa de Ressarcimento de Despesas e Encargos (detalhar composição nas Planilhas "PFP2.1", "PFP2.2", "PFP3")
A34: PU - Preço Unitário do Insumo (incluído encargos, taxas e impostos) - PU = CUD x FatorK
A35: PT - Preço Total do Insumo (incluído encargos, taxas e impostos) - PT = Qde x PU
A36: P - Profissionais nível superior nas áreas de Engenharia, Química, Arquitetura, Agronomia e Veterinária, conforme disposições da Lei 4.950-A/66
A37: S - Profissionais de nível superior nas demais áreas de atuação, incluindo Arqueólogo, Biólogo, Geógrafo e Sociólogo
A38: T - Profissionais de nível médio técnico nas diversas áreas de atuação
A39: A - Profissionais de nível médio de apoio técnico-administrativo
A41: Observações:
A42: 1- Sistemas oficiais de referência de preços utilizados
A43: Tabela Consultiva do DNIT-Out/2022.
A44: SINAPI/AL - 02/2023

Sheet PFP1.1_Topo
A1: SERVIÇOS TOPOGRÁFICOS/CARTOGRÁFICOS | G1: CODIGO:
G2: PFP-1.1
A3: NOME DA EMPRESA:
A5: PROJETO: | E5: CONTRATANTE: | G5: =PFP!J5 -> BASE:
A6: =PFP!A6 -> ELABORAÇÃO DE ESTUDO DE VIABILIDADE TÉCNICA, ECONÔMICA E AMBIENTAL, ESTUDOS BÁSICOS, PROJETO BÁSICO E PROJETO EXECUTIVO PARA CONSTRUÇÃO DE FEIRA POPULAR LOCALIZADA NO MUNICÍPIO DE SANTANA/AP | E6: CODEVASF (SEDE) | G6: =PFP!J6 -> 2023-11-01
A7: Cod. | B7: Base | C7: Insumos | D7: Uni | E7: Qde | F7: Preço Unitário (PU) | G7: Preço Total (PT)
A8: TP02 | B8: CODE | C8: Seções Tranversais | D8: km | E8: 4 | F8: 394.36 | G8: =ROUND(F8*E8,2) -> 1577.44
A9: TP04 | B9: CODE | C9: Pontos GPS de dupla frequencia (L1/L2) | D9: un | E9: 3 | F9: 981.07 | G9: 2943.21
A10: TP05 | B10: CODE | C10: Cadastro Físico | D10: ha | E10: 1 | F10: 17.86 | G10: 17.86
A11: TP06 | B11: CODE | C11: Cadastro Agrícola | D11: ha | E11: 1 | F11: 5.95 | G11: 5.95
A12: TP07 | B12: CODE | C12: Cadastro Jurídico | D12: ha | E12: 1 | F12: 11.91 | G12: 11.91
A13: TP08 | B13: CODE | C13: Cadastro Socioeconomico | D13: ha | E13: 1 | F13: 3.97 | G13: 3.97
A14: TP10 | B14: CODE | C14: Marco de Concreto (12x18x60cm) | D14: un | E14: 3 | F14: 53.89 | G14: 161.67
A15: TP11 | B15: CODE | C15: Barrote de Madeira (10x10x50cm) | D15: un | E15: 5 | F15: 28.7 | G15: 143.5
A16: TP12 | B16: CODE | C16: Piquetes de Madeira (2x2x20cm) | D16: un | E16: 20 | F16: 2.41 | G16: 48.2
A17: TP13 | B17: CODE | C17: Picada Manual p/ levantamento TP | D17: km | E17: 4 | F17: 194.88 | G17: 779.52
A18: TOTAL SERVIÇOS TOPOGRÁFICOS | G18: =SUM(G8:G17) -> 5693.23
A19: OBSERVAÇÃO:
A20: Uni - unidade de medição do insumo;
A21: Qde - Quantidade do Insumo (não pode ocorrer alteração pela Licitante)
A22: PU - Preço Unitário (composições padrão da Codevasf, já incluso o FatorK)
A23: PT - Preço Total (incluído encargos, taxas e impostos) - PT = Qde x PU

Sheet PFP1.2_Geo
A1: SERVIÇOS GEOLÓGICOS/GEOTÉCNICOS | G1: CODIGO:
G2: PFP-1.2
A3: NOME DA EMPRESA:
A5: PROJETO: | E5: CONTRATANTE: | G5: =PFP!J5 -> BASE:
A6: =PFP!A6 -> ELABORAÇÃO DE ESTUDO DE VIABILIDADE TÉCNICA, ECONÔMICA E AMBIENTAL, ESTUDOS BÁSICOS, PROJETO BÁSICO E PROJETO EXECUTIVO PARA CONSTRUÇÃO DE FEIRA POPULAR LOCALIZADA NO MUNICÍPIO DE SANTANA/AP | E6: CODEVASF (SEDE) | G6: =PFP!J6 -> 2023-11-01
A7: Cod. | B7: Base | C7: Insumos | D7: Uni | E7: Qde | F7: Preço Unitário (PU) | G7: Preço Total (PT)
A8: GT 2 | B8: CODE | C8: Sondagem a Percussão SPT
A9: GT2.1 | B9: CODE | C9: Sondagem Percussão: (Des)Mobilização por equipe | D9: un | E9: 1 | F9: 1249.33 | G9: =E9*F9 -> 1249.33
A10: GT2.2 | B10: CODE | C10: Sondagem Percursão: com SPT - Terrestre | D10: m | E10: 30 | F10: 94.11 | G10: =E10*F10 -> 2823.3
A11: GT6.1 | B11: CODE | C11: Ensaios de solo
A12: GT6.1.1 | B12: CODE | C12: Ensaio: Umidade Natural | D12: un | E12: 7 | F12: 76.89 | G12: 538.23
A13: GT6.1.2 | B13: CODE | C13: Ensaio: Densidade Natural | D13: un | E13: 7 | F13: 68.87 | G13: 482.09
A14: GT6.1.3 | B14: CODE | C14: Ensaio: Limite de Liquidez | D14: un | E14: 7 | F14: 86.09 | G14: 602.63
A15: GT6.1.4 | B15: CODE | C15: Ensaio: Limite de Plasticidade | D15: un | E15: 7 | F15: 77.48 | G15: 542.36
A16: GT6.1.5 | B16: CODE | C16: Ensaio: Granulometria por Peneiramento | D16: un | E16: 7 | F16: 110 | G16: 770
A17: GT6.1.6 | B17: CODE | C17: Ensaio: Granulometria por Sedimentação | D17: un | E17: 7 | F17: 124.27 | G17: 869.89
A18: GT6.1.7 | B18: CODE | C18: Ensaio: Compactação Proctor Normal | D18: un | E18: 7 | F18: 150.84 | G18: 1055.88
A19: GT6.1.8 | B19: CODE | C19: Ensaio: Massa Especifica Real dos Grãos | D19: un | E19: 7 | F19: 65.78 | G19: 460.46
A20: GT6.1.9 | B20: CODE | C20: Ensaio: Massa Específica Aparente "in situ" | D20: un | E20: 7 | F20: 73.43 | G20: 514.01
A21: GT6.1.10 | B21: CODE | C21: Ensaio: Adensamento Oedométrico | D21: un | E21: 2 | F21: 267.81 | G21: 535.62
A22: TOTAL SERVIÇOS GEOTÉCNICOS | G22: =SUM(G8:G21) -> 10443.8
A23: LEGENDA:
A24: Uni - unidade de medição do insumo;
A25: Qde - Quantidade do Insumo (não pode ocorrer alteração pela Licitante)
A26: PU - Preço Unitário (composições padrão da Codevasf, já incluso o FatorK)
A27: PT - Preço Total (incluído encargos, taxas e impostos) - PT = Qde x PU

Sheet PFP1.3_Ger
A1: SERVIÇOS COMPLEMENTARES | G1: CODIGO:
G2: PFP-1.3
A3: NOME DA EMPRESA:
A5: PROJETO: | E5: CONTRATANTE: | G5: =PFP!J5 -> BASE:
A6: =PFP!A6 -> ELABORAÇÃO DE ESTUDO DE VIABILIDADE TÉCNICA, ECONÔMICA E AMBIENTAL, ESTUDOS BÁSICOS, PROJETO BÁSICO E PROJETO EXECUTIVO PARA CONSTRUÇÃO DE FEIRA POPULAR LOCALIZADA NO MUNICÍPIO DE SANTANA/AP | E6: CODEVASF (SEDE) | G6: =PFP!J6 -> 2023-11-01
A7: Cod. | B7: Base | C7: Insumos | D7: Uni | E7: Qde | F7: Preço Unitário (PU) | G7: Preço Total (PT)
A8: V3 | B8: CODE | C8: Caminhonete 2.8 4x4 Diesel | D8: mês | E8: 1 | F8: ='CPU VEICULO_PickUp'!D49 -> 7159.58281 | G8: =E8*F8 -> 7159.58281
A9: B8951 | B9: DNIT | C9: Imóvel Comercial | D9: mês | E9: 2 | F9: 2343.97 | G9: =E9*F9 -> 4687.94
A10: B8953 | B10: DNIT | C10: Mobiliário de Escritório | D10: mês | E10: 2 | F10: 2178.62 | G10: =E10*F10 -> 4357.24
A11: B8959 | B11: DNIT | C11: Custos Diversos de Escritório | D11: mês | E11: 2 | F11: 501.12 | G11: =E11*F11 -> 1002.24
A16: TOTAL SERVIÇOS GEOTÉCNICOS | G16: =SUM(G8:G15) -> 17207.00281
A17: LEGENDA:
A18: Uni - unidade de medição do insumo;
A19: Qde - Quantidade do Insumo (não pode ocorrer alteração pela Licitante)
A20: PU - Preço Unitário (composições padrão da Codevasf, já incluso o FatorK)
A21: PT - Preço Total (incluído encargos, taxas e impostos) - PT = Qde x PU

Sheet PFP2.1_FatorKa
A1: DETALHAMENTO DOS ENCARGOS SOCIAIS: Ka | F1: CODIGO:
F2: PFP-2.1
A3: NOME DA CONSULTORA:
A5: PROJETO: | C5: CONTRATANTE: | F5: =PFP!J5 -> BASE:
A6: =PFP!A6 -> ELABORAÇÃO DE ESTUDO DE VIABILIDADE TÉCNICA, ECONÔMICA E AMBIENTAL, ESTUDOS BÁSICOS, PROJETO BÁSICO E PROJETO EXECUTIVO PARA CONSTRUÇÃO DE FEIRA POPULAR LOCALIZADA NO MUNICÍPIO DE SANTANA/AP | C6: CODEVASF (SEDE) | F6: SINAPI/AP: 12/22
A7: Cod | B7: DESCRIÇÃO | E7: % | F7: R$
A8: A | B8: ENCARGOS SOCIAIS BÁSICOS | E8: =ROUND(SUM(E9:E16),4) -> 0.368 | F8: =ROUND(E8*SUMIF(PFP!$B$8:$B$20,"MO1",PFP!$J$8:$J$20),2) -> 0
A9: A1 | B9: INSS | E9: 0.2 | F9: =ROUND(E9*SUMIF(PFP!$B$8:$B$20,"MO1",PFP!$J$8:$J$20),2) -> 0
A10: A2 | B10: SESI | E10: 0.015 | F10: =ROUND(E10*SUMIF(PFP!$B$8:$B$20,"MO1",PFP!$J$8:$J$20),2) -> 0
A11: A3 | B11: SENAI | E11: 0.01 | F11: =ROUND(E11*SUMIF(PFP!$B$8:$B$20,"MO1",PFP!$J$8:$J$20),2) -> 0
A12: A4 | B12: INCRA | E12: 0.002 | F12: =ROUND(E12*SUMIF(PFP!$B$8:$B$20,"MO1",PFP!$J$8:$J$20),2) -> 0
A13: A5 | B13: SEBRAE | E13: 0.006 | F13: =ROUND(E13*SUMIF(PFP!$B$8:$B$20,"MO1",PFP!$J$8:$J$20),2) -> 0
A14: A6 | B14: Salário Educação | E14: 0.025 | F14: =ROUND(E14*SUMIF(PFP!$B$8:$B$20,"MO1",PFP!$J$8:$J$20),2) -> 0
A15: A7 | B15: Seguro Contra Acidentes de Trabalho | E15: 0.03 | F15: =ROUND(E15*SUMIF(PFP!$B$8:$B$20,"MO1",PFP!$J$8:$J$20),2) -> 0
A16: A8 | B16: FGTS | E16: 0.08 | F16: =ROUND(E16*SUMIF(PFP!$B$8:$B$20,"MO1",PFP!$J$8:$J$20),2) -> 0
A17: B | B17: ENCARGOS SOCIAIS QUE RECEBEM INCIDÊNCIA DE "A" | E17: =ROUND(SUM(E18:E24),4) -> 0.1811 | F17: =ROUND(E17*SUMIF(PFP!$B$8:$B$20,"MO1",PFP!$J$8:$J$20),2) -> 0
A18: B3 | B18: Auxílio Enfermidade | E18: 0.0066 | F18: =ROUND(E18*SUMIF(PFP!$B$8:$B$20,"MO1",PFP!$J$8:$J$20),2) -> 0
A19: B4 | B19: 13º Salário | E19: 0.0833 | F19: =ROUND(E19*SUMIF(PFP!$B$8:$B$20,"MO1",PFP!$J$8:$J$20),2) -> 0
A20: B5 | B20: Licença Paternidade | E20: 0.0005 | F20: =ROUND(E20*SUMIF(PFP!$B$8:$B$20,"MO1",PFP!$J$8:$J$20),2) -> 0
A21: B6 | B21: Faltas Justificadas | E21: 0.0056 | F21: =ROUND(E21*SUMIF(PFP!$B$8:$B$20,"MO1",PFP!$J$8:$J$20),2) -> 0
A22: B8 | B22: Auxílio Acidente de Trabalho | E22: 0.0008 | F22: =ROUND(E22*SUMIF(PFP!$B$8:$B$20,"MO1",PFP!$J$8:$J$20),2) -> 0
A23: B9 | B23: Férias Gozadas | E23: 0.084 | F23: =ROUND(E23*SUMIF(PFP!$B$8:$B$20,"MO1",PFP!$J$8:$J$20),2) -> 0
A24: B10 | B24: Salário Maternidade | E24: 0.0003 | F24: =ROUND(E24*SUMIF(PFP!$B$8:$B$20,"MO1",PFP!$J$8:$J$20),2) -> 0
A25: C | B25: ENCARGOS SOCIAIS QUE NÃO RECEBEM INCIDÊNCIA DE "A" | E25: =ROUND(SUM(E26:E30),4) -> 0.0834 | F25: =ROUND(E25*SUMIF(PFP!$B$8:$B$20,"MO1",PFP!$J$8:$J$20),2) -> 0
A26: C1 | B26: Aviso Prévio Indenizado | E26: 0.0362 | F26: =ROUND(E26*SUMIF(PFP!$B$8:$B$20,"MO1",PFP!$J$8:$J$20),2) -> 0
A27: C2 | B27: Aviso Prévio Trabalhado | E27: 0.0009 | F27: =ROUND(E27*SUMIF(PFP!$B$8:$B$20,"MO1",PFP!$J$8:$J$20),2) -> 0
A28: C3 | B28: Férias Indenizadas | E28: 0.0224 | F28: =ROUND(E28*SUMIF(PFP!$B$8:$B$20,"MO1",PFP!$J$8:$J$20),2) -> 0
A29: C4 | B29: Depósito Rescisão Sem Justa Causa | E29: 0.0209 | F29: =ROUND(E29*SUMIF(PFP!$B$8:$B$20,"MO1",PFP!$J$8:$J$20),2) -> 0
A30: C5 | B30: Indenização Adicional | E30: 0.003 | F30: =ROUND(E30*SUMIF(PFP!$B$8:$B$20,"MO1",PFP!$J$8:$J$20),2) -> 0
A31: D | B31: REINCIDÊNCIAS | E31: =ROUND(SUM(E32:E33),4) -> 0.0698 | F31: =ROUND(E31*SUMIF(PFP!$B$8:$B$20,"MO1",PFP!$J$8:$J$20),2) -> 0
A32: D1 | B32: Reincidência de "A" sobre "B" | E32: =ROUND(E8*E17,4) -> 0.0666 | F32: =ROUND(E32*SUMIF(PFP!$B$8:$B$20,"MO1",PFP!$J$8:$J$20),2) -> 0
A33: D2 | B33: Reincidência de "A" sobre Aviso Prévio Trabalhado e reincidência do FGTS sobre Aviso Prévio Indenizado | E33: =ROUND((E27*E8)+(E26*E16),4) -> 0.0032 | F33: =ROUND(E33*SUMIF(PFP!$B$8:$B$20,"MO1",PFP!$J$8:$J$20),2) -> 0
A34: K1a | B34: ENCARGOS SOCIAIS | E34: =ROUND(E8+E17+E25+E31,4) -> 0.7023 | F34: =ROUND(E34*SUMIF(PFP!$B$8:$B$20,"MO1",PFP!$J$8:$J$20),2) -> 0
A35: Ka | B35: TAXA DE RESSARCIMENTO DE DESPESAS E ENCARGOS SOBRE MO1 | E35: =ROUND((1+E34+PFP3_FatorKd!E13)*(1+PFP3_FatorKd!E12)*(1+PFP3_FatorKd!E8),4) -> 2.2607
A36: OBSERVAÇÃO: CELETISTAS E EQUIVALENTES
A37: 1 - DISCRIMINAR OS ENCARGOS SOCIAIS COM SEUS RESPECTIVOS PERCENTUAS TOTALIZANDO OS MESMOS.
A38: 2 - APLICAR O % TOTAL P/ CALCULAR OS E. SOCIAIS INCIDENTES NA MÃO-DE-OBRA CELETISTAS
A39: Ka - Taxa de Ressarcimento de Despesas e Encargos sobre a Mão de Obra CELETISTA (incide apenas no Insumo Codigo MO1)
A40: Ka = (1 + K1 + K2) x (1 + K3) x (1 + K4)

Sheet PFP2.2_FatorKb
A1: DETALHAMENTO DOS ENCARGOS SOCIAIS: Kb | F1: CODIGO:
F2: PFP-2.2
A3: NOME DA CONSULTORA:
A5: PROJETO: | C5: CONTRATANTE: | F5: =PFP2.1_FatorKa!F5 -> BASE:
A6: =PFP!A6 -> ELABORAÇÃO DE ESTUDO DE VIABILIDADE TÉCNICA, ECONÔMICA E AMBIENTAL, ESTUDOS BÁSICOS, PROJETO BÁSICO E PROJETO EXECUTIVO PARA CONSTRUÇÃO DE FEIRA POPULAR LOCALIZADA NO MUNICÍPIO DE SANTANA/AP | C6: CODEVASF (SEDE) | F6: =PFP2.1_FatorKa!F6 -> SINAPI/AP: 12/22
A7: Cod | B7: DESCRIÇÃO | E7: % | F7: R$
A8: A | B8: ENCARGOS SOCIAIS BÁSICOS | E8: =ROUND(SUM(E9:E16),4) -> 0.2 | F8: =ROUND(E8*SUMIF(PFP!$B$8:$B$20,"MO2",PFP!$J$8:$J$20),2) -> 0
A9: A1 | B9: INSS | E9: 0.2 | F9: =ROUND(E9*SUMIF(PFP!$B$8:$B$20,"MO2",PFP!$J$8:$J$20),2) -> 0
A10: A2 | B10: SESI | E10: 0 | F10: =ROUND(E10*SUMIF(PFP!$B$8:$B$20,"MO2",PFP!$J$8:$J$20),2) -> 0
A11: A3 | B11: SENAI | E11: 0 | F11: =ROUND(E11*SUMIF(PFP!$B$8:$B$20,"MO2",PFP!$J$8:$J$20),2) -> 0
A12: A4 | B12: INCRA | E12: 0 | F12: =ROUND(E12*SUMIF(PFP!$B$8:$B$20,"MO2",PFP!$J$8:$J$20),2) -> 0
A13: A5 | B13: SEBRAE | E13: 0 | F13: =ROUND(E13*SUMIF(PFP!$B$8:$B$20,"MO2",PFP!$J$8:$J$20),2) -> 0
A14: A6 | B14: Salário Educação | E14: 0 | F14: =ROUND(E14*SUMIF(PFP!$B$8:$B$20,"MO2",PFP!$J$8:$J$20),2) -> 0
A15: A7 | B15: Seguro Contra Acidentes de Trabalho | E15: 0 | F15: =ROUND(E15*SUMIF(PFP!$B$8:$B$20,"MO2",PFP!$J$8:$J$20),2) -> 0
A16: A8 | B16: FGTS | E16: 0 | F16: =ROUND(E16*SUMIF(PFP!$B$8:$B$20,"MO2",PFP!$J$8:$J$20),2) -> 0
A17: B | B17: ENCARGOS SOCIAIS QUE RECEBEM INCIDÊNCIA DE "A" | E17: =ROUND(SUM(E18:E24),4) -> 0 | F17: =ROUND(E17*SUMIF(PFP!$B$8:$B$20,"MO2",PFP!$J$8:$J$20),2) -> 0
A18: B3 | B18: Auxílio Enfermidade | E18: 0 | F18: =ROUND(E18*SUMIF(PFP!$B$8:$B$20,"MO2",PFP!$J$8:$J$20),2) -> 0
A19: B4 | B19: 13º Salário | E19: 0 | F19: =ROUND(E19*SUMIF(PFP!$B$8:$B$20,"MO2",PFP!$J$8:$J$20),2) -> 0
A20: B5 | B20: Licença Paternidade | E20: 0 | F20: =ROUND(E20*SUMIF(PFP!$B$8:$B$20,"MO2",PFP!$J$8:$J$20),2) -> 0
A21: B6 | B21: Faltas Justificadas | E21: 0 | F21: =ROUND(E21*SUMIF(PFP!$B$8:$B$20,"MO2",PFP!$J$8:$J$20),2) -> 0
A22: B8 | B22: Auxílio Acidente de Trabalho | E22: 0 | F22: =ROUND(E22*SUMIF(PFP!$B$8:$B$20,"MO2",PFP!$J$8:$J$20),2) -> 0
A23: B9 | B23: Férias Gozadas | E23: 0 | F23: =ROUND(E23*SUMIF(PFP!$B$8:$B$20,"MO2",PFP!$J$8:$J$20),2) -> 0
A24: B10 | B24: Salário Maternidade | E24: 0 | F24: =ROUND(E24*SUMIF(PFP!$B$8:$B$20,"MO2",PFP!$J$8:$J$20),2) -> 0
A25: C | B25: ENCARGOS SOCIAIS QUE NÃO RECEBEM INCIDÊNCIA DE "A" | E25: =ROUND(SUM(E26:E30),4) -> 0 | F25: =ROUND(E25*SUMIF(PFP!$B$8:$B$20,"MO2",PFP!$J$8:$J$20),2) -> 0
A26: C1 | B26: Aviso Prévio Indenizado | E26: 0 | F26: =ROUND(E26*SUMIF(PFP!$B$8:$B$20,"MO2",PFP!$J$8:$J$20),2) -> 0
A27: C2 | B27: Aviso Prévio Trabalhado | E27: 0 | F27: =ROUND(E27*SUMIF(PFP!$B$8:$B$20,"MO2",PFP!$J$8:$J$20),2) -> 0
A28: C3 | B28: Férias Indenizadas | E28: 0 | F28: =ROUND(E28*SUMIF(PFP!$B$8:$B$20,"MO2",PFP!$J$8:$J$20),2) -> 0
A29: C4 | B29: Depósito Rescisão Sem Justa Causa | E29: 0 | F29: =ROUND(E29*SUMIF(PFP!$B$8:$B$20,"MO2",PFP!$J$8:$J$20),2) -> 0
A30: C5 | B30: Indenização Adicional | E30: 0 | F30: =ROUND(E30*SUMIF(PFP!$B$8:$B$20,"MO2",PFP!$J$8:$J$20),2) -> 0
A31: D | B31: REINCIDÊNCIAS | E31: =ROUND(SUM(E32:E33),4) -> 0 | F31: =ROUND(E31*SUMIF(PFP!$B$8:$B$20,"MO2",PFP!$J$8:$J$20),2) -> 0
A32: D1 | B32: Reincidência de "A" sobre "B" | E32: =ROUND(E8*E17,4) -> 0 | F32: =ROUND(E32*SUMIF(PFP!$B$8:$B$20,"MO2",PFP!$J$8:$J$20),2) -> 0
A33: D2 | B33: Reincidência de "A" sobre Aviso Prévio Trabalhado e reincidência do FGTS sobre Aviso Prévio Indenizado | E33: =ROUND((E27*E8)+(E26*E16),4) -> 0 | F33: =ROUND(E33*SUMIF(PFP!$B$8:$B$20,"MO2",PFP!$J$8:$J$20),2) -> 0
A34: K1b | B34: ENCARGOS SOCIAIS | E34: =ROUND(E8+E17+E25+E31,4) -> 0.2 | F34: =ROUND(E34*SUMIF(PFP!$B$8:$B$20,"MO2",PFP!$J$8:$J$20),2) -> 0
A35: Kb | B35: TAXA DE RESSARCIMENTO DE DESPESAS E ENCARGOS SOBRE MO2 | E35: =ROUND((1+E34+PFP3_FatorKd!E13)*(1+PFP3_FatorKd!E12)*(1+PFP3_FatorKd!E8),4) -> 1.6208
A36: OBSERVAÇÃO: AUTÔNOMOS E EQUIVALENTES
A37: 1 - DISCRIMINAR OS ENCARGOS SOCIAIS COM SEUS RESPECTIVOS PERCENTUAS TOTALIZANDO OS MESMOS.
A38: 2 - APLICAR O % TOTAL P/ CALCULAR OS E. SOCIAIS INCIDENTES NA MÃO-DE-OBRA AUTONÔMOS
A39: Kb - Taxa de Ressarcimento de Despesas e Encargos sobre a Mão de Obra AUTONÔMA (incide apenas no Insumo Codigo MO2)
A40: Kb = (1 + K1 + K2) x (1 + K3) x (1 + K4)

Sheet PFP2.3_FatorKc
A1: DETALHAMENTO DOS ENCARGOS SOCIAIS: Kc | F1: CODIGO:
F2: PFP-2.3
A3: NOME DA CONSULTORA:
A5: PROJETO: | C5: CONTRATANTE: | F5: =PFP2.2_FatorKb!F5 -> BASE:
A6: =PFP!A6 -> ELABORAÇÃO DE ESTUDO DE VIABILIDADE TÉCNICA, ECONÔMICA E AMBIENTAL, ESTUDOS BÁSICOS, PROJETO BÁSICO E PROJETO EXECUTIVO PARA CONSTRUÇÃO DE FEIRA POPULAR LOCALIZADA NO MUNICÍPIO DE SANTANA/AP | C6: CODEVASF (SEDE) | F6: =PFP2.2_FatorKb!F6 -> SINAPI/AP: 12/22
A7: Cod | B7: DESCRIÇÃO | E7: % | F7: R$
A8: A | B8: ENCARGOS SOCIAIS BÁSICOS | E8: =SUM(E9:E16) -> 0 | F8: =ROUND(E8*SUMIF(PFP!$B$8:$B$20,"MO3",PFP!$J$8:$J$20),2) -> 0
A9: A1 | B9: INSS | E9: 0 | F9: =ROUND(E9*SUMIF(PFP!$B$8:$B$20,"MO3",PFP!$J$8:$J$20),2) -> 0
A10: A2 | B10: SESI | E10: 0 | F10: =ROUND(E10*SUMIF(PFP!$B$8:$B$20,"MO3",PFP!$J$8:$J$20),2) -> 0
A11: A3 | B11: SENAI | E11: 0 | F11: =ROUND(E11*SUMIF(PFP!$B$8:$B$20,"MO3",PFP!$J$8:$J$20),2) -> 0
A12: A4 | B12: INCRA | E12: 0 | F12: =ROUND(E12*SUMIF(PFP!$B$8:$B$20,"MO3",PFP!$J$8:$J$20),2) -> 0
A13: A5 | B13: SEBRAE | E13: 0 | F13: =ROUND(E13*SUMIF(PFP!$B$8:$B$20,"MO3",PFP!$J$8:$J$20),2) -> 0
A14: A6 | B14: Salário Educação | E14: 0 | F14: =ROUND(E14*SUMIF(PFP!$B$8:$B$20,"MO3",PFP!$J$8:$J$20),2) -> 0
A15: A7 | B15: Seguro Contra Acidentes de Trabalho | E15: 0 | F15: =ROUND(E15*SUMIF(PFP!$B$8:$B$20,"MO3",PFP!$J$8:$J$20),2) -> 0
A16: A8 | B16: FGTS | E16: 0 | F16: =ROUND(E16*SUMIF(PFP!$B$8:$B$20,"MO3",PFP!$J$8:$J$20),2) -> 0
A17: B | B17: ENCARGOS SOCIAIS QUE RECEBEM INCIDÊNCIA DE "A" | E17: =ROUND(SUM(E18:E24),4) -> 0 | F17: =ROUND(E17*SUMIF(PFP!$B$8:$B$20,"MO3",PFP!$J$8:$J$20),2) -> 0
A18: B3 | B18: Auxílio Enfermidade | E18: 0 | F18: =ROUND(E18*SUMIF(PFP!$B$8:$B$20,"MO3",PFP!$J$8:$J$20),2) -> 0
A19: B4 | B19: 13º Salário | E19: 0 | F19: =ROUND(E19*SUMIF(PFP!$B$8:$B$20,"MO3",PFP!$J$8:$J$20),2) -> 0
A20: B5 | B20: Licença Paternidade | E20: 0 | F20: =ROUND(E20*SUMIF(PFP!$B$8:$B$20,"MO3",PFP!$J$8:$J$20),2) -> 0
A21: B6 | B21: Faltas Justificadas | E21: 0 | F21: =ROUND(E21*SUMIF(PFP!$B$8:$B$20,"MO3",PFP!$J$8:$J$20),2) -> 0
A22: B8 | B22: Auxílio Acidente de Trabalho | E22: 0 | F22: =ROUND(E22*SUMIF(PFP!$B$8:$B$20,"MO3",PFP!$J$8:$J$20),2) -> 0
A23: B9 | B23: Férias Gozadas | E23: 0 | F23: =ROUND(E23*SUMIF(PFP!$B$8:$B$20,"MO3",PFP!$J$8:$J$20),2) -> 0
A24: B10 | B24: Salário Maternidade | E24: 0 | F24: =ROUND(E24*SUMIF(PFP!$B$8:$B$20,"MO3",PFP!$J$8:$J$20),2) -> 0
A25: C | B25: ENCARGOS SOCIAIS QUE NÃO RECEBEM INCIDÊNCIA DE "A" | E25: =ROUND(SUM(E26:E30),4) -> 0 | F25: =ROUND(E25*SUMIF(PFP!$B$8:$B$20,"MO3",PFP!$J$8:$J$20),2) -> 0
A26: C1 | B26: Aviso Prévio Indenizado | E26: 0 | F26: =ROUND(E26*SUMIF(PFP!$B$8:$B$20,"MO3",PFP!$J$8:$J$20),2) -> 0
A27: C2 | B27: Aviso Prévio Trabalhado | E27: 0 | F27: =ROUND(E27*SUMIF(PFP!$B$8:$B$20,"MO3",PFP!$J$8:$J$20),2) -> 0
A28: C3 | B28: Férias Indenizadas | E28: 0 | F28: =ROUND(E28*SUMIF(PFP!$B$8:$B$20,"MO3",PFP!$J$8:$J$20),2) -> 0
A29: C4 | B29: Depósito Rescisão Sem Justa Causa | E29: 0 | F29: =ROUND(E29*SUMIF(PFP!$B$8:$B$20,"MO3",PFP!$J$8:$J$20),2) -> 0
A30: C5 | B30: Indenização Adicional | E30: 0 | F30: =ROUND(E30*SUMIF(PFP!$B$8:$B$20,"MO3",PFP!$J$8:$J$20),2) -> 0
A31: D | B31: REINCIDÊNCIAS | E31: =ROUND(SUM(E32:E33),4) -> 0 | F31: =ROUND(E31*SUMIF(PFP!$B$8:$B$20,"MO3",PFP!$J$8:$J$20),2) -> 0
A32: D1 | B32: Reincidência de "A" sobre "B" | E32: =ROUND(E8*E17,4) -> 0 | F32: =ROUND(E32*SUMIF(PFP!$B$8:$B$20,"MO3",PFP!$J$8:$J$20),2) -> 0
A33: D2 | B33: Reincidência de "A" sobre Aviso Prévio Trabalhado e reincidência do FGTS sobre Aviso Prévio Indenizado | E33: =ROUND(E8*E27,4)+ROUND(E26*E11,4) -> 0 | F33: =ROUND(E33*SUMIF(PFP!$B$8:$B$20,"MO3",PFP!$J$8:$J$20),2) -> 0
A34: K1c | B34: ENCARGOS SOCIAIS | E34: =ROUND(E8+E17+E25+E31,4) -> 0 | F34: =ROUND(E34*SUMIF(PFP!$B$8:$B$20,"MO3",PFP!$J$8:$J$20),2) -> 0
A35: Kc | B35: TAXA DE RESSARCIMENTO DE DESPESAS E ENCARGOS SOBRE MO3 | E35: =ROUND((1+E34+PFP3_FatorKd!E13)*(1+PFP3_FatorKd!E12)*(1+PFP3_FatorKd!E8),4) -> 1.3661
A36: OBSERVAÇÃO: SOCIETÁRIOS E EQUIVALENTES
A37: 1 - DISCRIMINAR OS ENCARGOS SOCIAIS COM SEUS RESPECTIVOS PERCENTUAS TOTALIZANDO OS MESMOS.
A38: 2 - APLICAR O % TOTAL P/ CALCULAR OS E. SOCIAIS INCIDENTES NA MÃO-DE-OBRA DE SOCIETÁRIOS
A39: Kc - Taxa de Ressarcimento de Despesas e Encargos sobre a Mão de Obra SOCIETÁRIA (incide apenas no Insumo Codigo MO3)
A40: Kc = (1 + K1 + K2) x (1 + K3) x (1 + K4)

Sheet PFP3_FatorKd
A1: DESPESAS FISCAIS E CUSTOS DIVERSOS: Kc | F1: CODIGO:
F2: PFP-3
A3: NOME DA CONSULTORA:
A5: PROJETO: | C5: CONTRATANTE: | F5: =PFP2.3_FatorKc!F5 -> BASE:
A6: =PFP!A6 -> ELABORAÇÃO DE ESTUDO DE VIABILIDADE TÉCNICA, ECONÔMICA E AMBIENTAL, ESTUDOS BÁSICOS, PROJETO BÁSICO E PROJETO EXECUTIVO PARA CONSTRUÇÃO DE FEIRA POPULAR LOCALIZADA NO MUNICÍPIO DE SANTANA/AP | C6: CODEVASF (SEDE) | F6: =PFP2.3_FatorKc!F6 -> SINAPI/AP: 12/22
A7: Cod | B7: DESCRIÇÃO1 | D7: % preço2 | E7: % custo4 | F7: R$
A8: K4 | B8: TRIBUTOS | D8: =ROUND(D9+D10+D11,4) -> 0.1425 | E8: =ROUND(E9+E10+E11,4) -> 0.1661 | F8: =E8*SUM(SUMIF(PFP!$B$8:$B$20,"MO1",PFP!$J$8:$J$20)*(1+PFP2.1_FatorKa!$E$34)+SUMIF(PFP!$B$8:$B$20,"MO2",PFP!$J$8:$J$20)*(1+PFP2.2_FatorKb!$E$34)+SUMIF(PFP!$B$8:$B$20,"<>MO*",PFP!$J$8:$J$20)+$F$13+$F$12) -> 17236.00708
A9: K4.1 | B9: ISS | D9: 0.05 | E9: 0.0583 | F9: =E9*SUM(SUMIF(PFP!$B$8:$B$20,"MO1",PFP!$J$8:$J$20)*(1+PFP2.1_FatorKa!$E$34)+SUMIF(PFP!$B$8:$B$20,"MO2",PFP!$J$8:$J$20)*(1+PFP2.2_FatorKb!$E$34)+SUMIF(PFP!$B$8:$B$20,"<>MO*",PFP!$J$8:$J$20)+$F$13+$F$12) -> 6049.72434
A10: K4.2 | B10: PIS3 - aliquota efetiva aplicavel percentual-desconto | D10: 0.0165 | E10: 0.0192 | F10: =E10*SUM(SUMIF(PFP!$B$8:$B$20,"MO1",PFP!$J$8:$J$20)*(1+PFP2.1_FatorKa!$E$34)+SUMIF(PFP!$B$8:$B$20,"MO2",PFP!$J$8:$J$20)*(1+PFP2.2_FatorKb!$E$34)+SUMIF(PFP!$B$8:$B$20,"<>MO*",PFP!$J$8:$J$20)+$F$13+$F$12) -> 1992.362047
A11: K4.3 | B11: COFINS3 - aliquota efetiva aplicavel percentual-desconto | D11: 0.076 | E11: 0.0886 | F11: =E11*SUM(SUMIF(PFP!$B$8:$B$20,"MO1",PFP!$J$8:$J$20)*(1+PFP2.1_FatorKa!$E$34)+SUMIF(PFP!$B$8:$B$20,"MO2",PFP!$J$8:$J$20)*(1+PFP2.2_FatorKb!$E$34)+SUMIF(PFP!$B$8:$B$20,"<>MO*",PFP!$J$8:$J$20)+$F$13+$F$12) -> 9193.920696
A12: K3 | B12: REMUNERAÇÃO DA EMPRESA (LUCRO) | E12: 0.0924 | F12: =E12*SUM(SUMIF(PFP!$B$8:$B$20,"MO1",PFP!$J$8:$J$20)*(1+PFP2.1_FatorKa!$E$34)+SUMIF(PFP!$B$8:$B$20,"MO2",PFP!$J$8:$J$20)*(1+PFP2.2_FatorKb!$E$34)+SUMIF(PFP!$B$8:$B$20,"<>MO*",PFP!$J$8:$J$20)+$F$13) -> 8777.226612
A13: K2 | B13: CUSTOS DA ADMINISTRAÇÃO CENTRAL | E13: =ROUND(SUM(E14:E16),4) -> 0.0724 | F13: =ROUND(E13*SUMIF(PFP!$B$8:$B$20,"MO*",PFP!$J$8:$J$20),2) -> 0
A14: K2.1 | B14: Custos da administração central da empresa (diretoria, pessoal técnico de apoio e pessoal administrativo não diretamente vinculado à prestação dos serviços) | E14: 0.04 | F14: =ROUND(E14*SUMIF(PFP!$B$8:$B$20,"MO*",PFP!$J$8:$J$20),2) -> 0
A15: K2.2 | B15: Outras despesas que afetam o custo de produção como treinamento, biblioteca, programa de qualidade, programa de benefícios, auditoria interna e externa | E15: 0.02 | F15: =ROUND(E15*SUMIF(PFP!$B$8:$B$20,"MO*",PFP!$J$8:$J$20),2) -> 0
A16: K2.3 | B16: Despesas fixas e variaveis com patrimônio, aluguéis, comunicação, manutenção e transporte não diretamente relacionados com o custo direto dos serviços | E16: 0.0124 | F16: =ROUND(E16*SUMIF(PFP!$B$8:$B$20,"MO*",PFP!$J$8:$J$20),2) -> 0
A17: Kd | B17: TAXA RESSARCIMENTO DE DESPESAS SOBRE CUSTOS DIVERSOS | E17: =ROUND((1+E12)*(1+E8),4) -> 1.2738
A18: NOME DO INFORMANTE: | E18: QUALIFICAÇÃO:
A20: ASSINATURA: | E20: DATA:
A22: Observação:
A23: 1 - RELACIONAR OS CUSTOS DE ADMINISTRAÇÃO COM RESPECTIVOS PERCENTUAIS INCIDENTES NA MÃO -DE-OBRA
A24: 1 - DISCRIMINAR OS TRIBUTOS QUE INCIDEM SOBRE OS CUSTOS DA PRESTAÇÃO DOS SERVIÇOS
A25: 2 - K4 = INDICAR % DE CADA TRIBUTO E A SOMA DOS MESMOS (ex: ISS 5% + PIS 1,65% + COFINS 7,60% = 14,25%)
A26: 3 - PIS e COFINS, Regime de Incidencia Acumulativa (0,65% e 3,00% - sem percentual de desconto) ou em Regime de Incidencia Não Acumulativa (1,65% e 7,60% - aplicável percentual de desconto) de acordo com a forma de apuração do lucro no IRPJ. APRESENTAR COMPROVANTES de aproveitamento de créditos tributários dos últimos 12 meses em caso de aplicação de "percentual de desconto".
A27: 4 - AS DESPESAS FISCAIS (K4) INCIDEM SOBRE O TOTAL DA FATURA E NÃO SOBRE OS CUSTOS INCORRIDOS,
A28: DEVENDO SER CALCULADO O K4' APLICANDO-SE A SEGUINTE FÓRMULA:
A29: K4' = { [ 1 / ( 1 - K4) ] - 1 } x 100
A30: =CONCATENATE(" K4' = { [ 1 / ( 1 - ",D8," ) ] - 1 } x 100") -> K4' = { [ 1 / ( 1 - 0,1425 ) ] - 1 } x 100
A31: Kc - Taxa de Ressarcimento de Despesas sobre Custos Diversos (incide sobre os Insumos Codigo DP e EM)
A32: Kc = (1 + K3) x (1 + K4)
A33: K2 - Incide sobre o Custo Total (CT) da Mão de Obra (MO* = MO1 + MO2)
A34: K3 - Incide sobre o Custo Total (CT) Mão de Obra com encargos (MO1 x Ka ou MO2 x Kb), demais Custos (DP e EM), e Custos da Administração Central (K2)
A35: K4 - Incide sobre o Custo Total (CT) Mão de Obra com encargos (MO1 x Ka ou MO2 x Kb), demais Custos (DP e EM), e Custos da Administração Central (K2) e Lucro (K3)

Sheet CRO1_Ins-Pro
A1: INSUMOS POR ETAPA/PRODUTO | K1: CÓDIGO:
K2: CRO-1
A3: Cod. | B3: Categoria / Insumo | C3: Uni | D3: Qde | E3: CUD | F3: PU | G3: FatorK | H3: E1. EB | I3: E2. EVTEA | J3: E3. PB | K3: E4. PE
G4: Meses | H4: ='CRO2_Ins-Mes'!#REF! ->  | I4: ='CRO2_Ins-Mes'!#REF! ->  | J4: ='CRO2_Ins-Mes'!#REF! ->  | K4: ='CRO2_Ins-Mes'!#REF! -> 
A5: =PFP!B8 -> P8061 | B5: =PFP!D8 -> Engenheiro coordenador (P8061) | C5: mês | D5: =SUM(H5:K5) -> 0.7 | E5: =PFP!G8 -> 17126.55 | F5: =PFP!H8 -> 23396.58 | G5: =PFP!I8 -> 1.3661 | H5: ='CRO2_Ins-Mes'!E5 -> 0.2 | I5: ='CRO2_Ins-Mes'!E15 -> 0.2 | J5: ='CRO2_Ins-Mes'!E23 -> 0.2 | K5: ='CRO2_Ins-Mes'!E31 -> 0.1
A6: =PFP!B9 -> P8066 | B6: =PFP!D9 -> Engenheiro pleno (P8066) | C6: mês | D6: 1.5 | E6: =PFP!G9 -> 11669.34 | F6: =PFP!H9 -> 26380.88 | G6: =PFP!I9 -> 2.2607 | H6: ='CRO2_Ins-Mes'!E6 -> 0.5 | I6: ='CRO2_Ins-Mes'!E16 -> 0.5 | J6: ='CRO2_Ins-Mes'!E24 -> 0 | K6: ='CRO2_Ins-Mes'!E32 -> 0.5
A7: =PFP!B10 -> P8065 | B7: =PFP!D10 -> Engenheiro júnior (P8065) | C7: mês | D7: 2.4 | E7: =PFP!G10 -> 11220 | F7: =PFP!H10 -> 25365.05 | G7: =PFP!I10 -> 2.2607 | H7: ='CRO2_Ins-Mes'!E7 -> 0.4 | I7: ='CRO2_Ins-Mes'!E17 -> 0.5 | J7: ='CRO2_Ins-Mes'!E25 -> 1.5 | K7: ='CRO2_Ins-Mes'!E33 -> 0
A8: =PFP!B11 -> 40807 | B8: =PFP!D11 -> Desenhista (40807) | C8: mês | D8: 0.7 | E8: =PFP!G11 -> 2660.12 | F8: =PFP!H11 -> 6013.73 | G8: =PFP!I11 -> 2.2607 | H8: ='CRO2_Ins-Mes'!E8 -> 0.2 | I8: ='CRO2_Ins-Mes'!E18 -> 0.5 | J8: ='CRO2_Ins-Mes'!E26 -> 0 | K8: ='CRO2_Ins-Mes'!E34 -> 0
A9: =PFP!B12 -> P8014 | B9: Arquiteto Pleno | C9: mês | D9: 2 | E9: =PFP!G12 -> 11626.7 | F9: =PFP!H12 -> 26284.48 | G9: =PFP!I12 -> 2.2607 | H9: ='CRO2_Ins-Mes'!E9 -> 0 | I9: ='CRO2_Ins-Mes'!E19 -> 0 | J9: ='CRO2_Ins-Mes'!E27 -> 1.5 | K9: ='CRO2_Ins-Mes'!E35 -> 0.5
A10: - | B10: =PFP!D13 -> Encargos Comp. e Adicionais | C10: mês | D10: =SUM(D5:D9) -> 7.3 | E10: =PFP!G13 -> 1032.923973 | F10: =PFP!H13 -> 1315.74 | G10: =PFP!I13 -> 1.2738 | H10: =SUM(H5:H9) -> 1.3 | I10: =SUM(I5:I9) -> 1.7 | J10: =SUM(J5:J9) -> 3.2 | K10: =SUM(K5:K9) -> 1.1
A11: - | B11: =PFP!D14 -> Auxilio Transporte Técnicos | C11: mês | D11: =SUM(H11:K11) -> 0 | E11: =PFP!G14 -> Já incluso* | F11: =PFP!H14 -> 0 | G11: =PFP!I14 -> 0 | H11: 0 | I11: 0 | J11: 0 | K11: 0
A12: - | B12: =PFP!D15 -> Auxilio Transporte Secretária | C12: mês | D12: 0 | E12: =PFP!G15 -> Já Incluso* | F12: =PFP!H15 -> 0 | G12: =PFP!I15 -> 0 | H12: 0 | I12: 0 | J12: 0 | K12: 0
A13: - | B13: =PFP!D16 -> Relatório Parcial | C13: un | D13: 0 | E13: =PFP!G16 -> 33.35 | F13: =PFP!H16 -> 42.48 | G13: =PFP!I16 -> 1.2738 | H13: ='CRO2_Ins-Mes'!E10 -> 0 | I13: ='CRO2_Ins-Mes'!E20 -> 0 | J13: ='CRO2_Ins-Mes'!E28 -> 0 | K13: ='CRO2_Ins-Mes'!E36 -> 0
A14: - | B14: =PFP!D17 -> Relatório Final | C14: un | D14: 4 | E14: =PFP!G17 -> 1478.8 | F14: =PFP!H17 -> 1883.7 | G14: =PFP!I17 -> 1.2738 | H14: ='CRO2_Ins-Mes'!E11 -> 1 | I14: ='CRO2_Ins-Mes'!E21 -> 1 | J14: ='CRO2_Ins-Mes'!E29 -> 1 | K14: ='CRO2_Ins-Mes'!E37 -> 1
A15: - | B15: =PFP!D18 -> Total Serviços Cartográficos | C15: un | D15: 1 | E15: =PFP!G18 -> - | F15: =PFP!H18 -> 5693.23 | G15: =PFP!I18 -> - | H15: 1
A16: - | B16: =PFP!D19 -> Total Serviços Geotécnicos | C16: un | D16: 1 | E16: =PFP!G19 -> - | F16: =PFP!H19 -> 10443.8 | G16: =PFP!I19 -> - | H16: 1
A17: - | B17: =PFP!D20 -> Serviços Complementares | C17: un | D17: 1 | E17: =PFP!G20 -> - | F17: =PFP!H20 -> 17207.00281 | G17: =PFP!I20 -> - | H17: 0.22 | I17: 0.22 | J17: 0.44 | K17: 0.12
A18: TOTAL | B18: VALOR TOTAL POR PRODUTO | C18: R$ | D18: =SUM(H18:K18) -> 224087.3518 | H18: =H5*$F$5+H6*$F$6+H7*$F$7+H8*$F$8+H9*$F$9+H10*$F$10+H11*$F$11+H12*$F$12+H13*$F$13+H14*$F$14+H15*$F$15+H16*$F$16+H17*$F$17 -> 52735.25462 | I18: =I5*$F$5+I6*$F$6+I7*$F$7+I8*$F$8+I9*$F$9+I10*$F$10+I11*$F$11+I12*$F$12+I13*$F$13+I14*$F$14+I15*$F$15+I16*$F$16+I17*$F$17 -> 41465.14462 | J18: =J5*$F$5+J6*$F$6+J7*$F$7+J8*$F$8+J9*$F$9+J10*$F$10+J11*$F$11+J12*$F$12+J13*$F$13+J14*$F$14+J15*$F$15+J16*$F$16+J17*$F$17 -> 95818.76024 | K18: =K5*$F$5+K6*$F$6+K7*$F$7+K8*$F$8+K9*$F$9+K10*$F$10+K11*$F$11+K12*$F$12+K13*$F$13+K14*$F$14+K15*$F$15+K16*$F$16+K17*$F$17 -> 34068.19234
C19: % | D19: =SUM(H19:K19) -> 1 | H19: =ROUND(H18/$D$18,5) -> 0.23533 | I19: 0.18504 | J19: 0.4276 | K19: 0.15203
A82: OBSERVAÇÃO:
A83: P - Profissionais nível superior nas áreas de Engenharia, Química, Arquitetura, Agronomia e Veterinária, conforme disposições da Lei 4.950-A/66
A84: T - Profissionais de nível médio técnico nas diversas áreas de atuação
A85: A - Profissionais de nível médio de apoio técnico-administrativo

Sheet CRO2_Ins-Mes
A1: CRONOGRAMA SIMPLIFICADO
A3: Cod1 | B3: Cod2 | C3: Produtos | D3: Uni | E3: Qde | F3: 1 | G3: 2 | H3: 3 | I3: 4 | J3: 5 | K3: 6 | L3: 7 | M3: 8
A4: Cod1 | B4: Cod2 | C4: Insumos | D4: Uni | E4: Qde | F4: 1 | G4: 2 | H4: 3 | I4: 4 | J4: 5 | K4: 6 | L4: 7 | M4: 8
A5: 2 | B5: 2.1 | C5: =PFP!D8 -> Engenheiro coordenador (P8061) | D5: =PFP!E8 -> mês | E5: =SUM(F5:M5) -> 0.2 | F5: 0.1 | G5: 0.1
A6: 2 | B6: 2.2 | C6: =PFP!D9 -> Engenheiro pleno (P8066) | D6: =PFP!E9 -> mês | E6: =SUM(F6:M6) -> 0.5 | F6: 0.25 | G6: 0.25
A7: 2 | B7: 2.3 | C7: =PFP!D10 -> Engenheiro júnior (P8065) | D7: =PFP!E10 -> mês | E7: 0.4 | F7: 0.2 | G7: 0.2
A8: 2 | B8: 2.4 | C8: =PFP!D11 -> Desenhista (40807) | D8: =PFP!E11 -> mês | E8: 0.2 | F8: 0.2
A9: 2 | B9: 2.5 | C9: =PFP!D12 -> Arquiteto Pleno (P8014) | D9: mês | E9: 0
A10: 2 | B10: 2.6 | C10: =PFP!D16 -> Relatório Parcial | D10: =PFP!E16 -> un | E10: 0
A11: 2 | B11: 2.7 | C11: =PFP!D17 -> Relatório Final | D11: =PFP!E17 -> un | E11: 1 | G11: 1
A12: 2 | B12: 2.8 | C12: =PFP!D18 -> Total Serviços Cartográficos | D12: =PFP!E18 -> un | E12: 0
A13: 2 | B13: 2.9 | C13: =PFP!D20 -> Serviços Complementares | D13: =PFP!E20 -> un | E13: 0
A14: 2 | B14: 2 | C14: Estudos Básicos (EB) | E14: 2.3 | F14: =SUM(F5:F13) -> 0.75 | G14: 1.55 | H14: 0 | I14: 0 | J14: 0 | K14: 0 | L14: 0 | M14: 0
A15: 3 | B15: 3.1 | C15: =PFP!D8 -> Engenheiro coordenador (P8061) | D15: =PFP!E8 -> mês | E15: =SUM(F15:M15) -> 0.2 | F15: 0.1 | G15: 0.1
A16: 3 | B16: 3.2 | C16: =PFP!D9 -> Engenheiro pleno (P8066) | D16: =PFP!E9 -> mês | E16: =SUM(F16:M16) -> 0.5 | F16: 0.25 | G16: 0.25
A17: 3 | B17: 3.3 | C17: =PFP!D10 -> Engenheiro júnior (P8065) | D17: =PFP!E10 -> mês | E17: 0.5 | F17: 0.25 | G17: 0.25
A18: 3 | B18: 3.4 | C18: =PFP!D11 -> Desenhista (40807) | D18: =PFP!E11 -> mês | E18: 0.5 | F18: 0.25 | G18: 0.25
A19: 3 | B19: 3.5 | C19: =PFP!D12 -> Arquiteto Pleno (P8014) | D19: mês | E19: 0
A20: 3 | B20: 3.6 | C20: =PFP!D16 -> Relatório Parcial | D20: un | E20: 0
A21: 3 | B21: 3.7 | C21: =PFP!D17 -> Relatório Final | D21: un | E21: 1 | G21: 1
A22: 3 | B22: 3 | C22: Estudo de Viabilidade Técnica, Econômica e Ambiental (EVTEA) | E22: 2.7 | F22: =SUM(F15:F21) -> 0.85 | G22: 1.85 | H22: 0 | I22: 0 | J22: 0 | K22: 0 | L22: 0 | M22: 0
A23: 4 | B23: 4.1 | C23: =PFP!D8 -> Engenheiro coordenador (P8061) | D23: =PFP!E8 -> mês | E23: =SUM(F23:M23) -> 0.2 | H23: 0.1 | I23: 0.1
A24: 4 | B24: 4.2 | C24: =PFP!D9 -> Engenheiro pleno (P8066) | D24: =PFP!E9 -> mês | E24: 0
A25: 4 | B25: 4.3 | C25: =PFP!D10 -> Engenheiro júnior (P8065) | D25: =PFP!E10 -> mês | E25: 1.5 | H25: 0.5 | I25: 1
A26: 4 | B26: 4.4 | C26: =PFP!D11 -> Desenhista (40807) | D26: =PFP!E11 -> mês | E26: 0
A27: 4 | B27: 4.5 | C27: =PFP!D12 -> Arquiteto Pleno (P8014) | D27: mês | E27: 1.5 | H27: 0.5 | I27: 1
A28: 4 | B28: 4.6 | C28: =PFP!D16 -> Relatório Parcial | D28: =PFP!E16 -> un | E28: 0
A29: 4 | B29: 4.7 | C29: =PFP!D17 -> Relatório Final | D29: =PFP!E17 -> un | E29: 1 | I29: 1
A30: 4 | B30: 4 | C30: Projeto Básico (PB) | E30: 4.2 | F30: =SUM(F23:F29) -> 0 | G30: 0 | H30: 1.1 | I30: 3.1 | J30: 0 | K30: 0 | L30: 0 | M30: 0
A31: 5 | B31: 5.1 | C31: Engenheiro coordenador (P8061) | D31: mês | E31: 0.1 | J31: 0.1
A32: 5 | B32: 5.2 | C32: Engenheiro pleno (P8066) | D32: mês | E32: 0.5 | J32: 0.5
A33: 5 | B33: 5.3 | C33: Engenheiro júnior (P8065) | D33: mês | E33: 0
A34: 5 | B34: 5.4 | C34: Desenhista (40807) | D34: mês | E34: 0
A35: 5 | B35: 5.5 | C35: Arquiteto Pleno | D35: mês | E35: 0.5 | J35: 0.5
A36: 5 | B36: 5.6 | C36: Relatório Parcial | D36: un | E36: 0
A37: 5 | B37: 5.7 | C37: Relatório Final | D37: un | E37: 1 | J37: 1
A38: 5 | B38: 5 | C38: Projeto Executivo (PE) | E38: 2.1 | F38: =SUM(F31:F37) -> 0 | G38: 0 | H38: 0 | I38: 0 | J38: 2.1 | K38: 0 | L38: 0 | M38: 0
A39: Total | C39: Balanço de Insumos | F39: =F38+F30+F22+F14 -> 1.6 | G39: 3.4 | H39: 1.1 | I39: 3.1 | J39: 2.1 | K39: 0 | L39: 0 | M39: 0

Sheet CPU VEICULO_PickUp
A2: Composição de Preços de Locação de Veículos
C3: Data de atualização: | D3: 2023-04-27 | F3: CV | G3: Média | H3: Mediana | L3: CV | M3: Média | N3: Mediana | W3: CV | X3: Média | Y3: Mediana
A4: CODEVASF | F4: =_xlfn.STDEV.S(F7:I7)/AVERAGE(F7:I7) -> 0.1058577365 | G4: =AVERAGE(F7:I7) -> 181000.25 | H4: =MEDIAN(F7:I7) -> 185107.5 | L4: =_xlfn.STDEV.S(M6:T6)/AVERAGE(M6:T6) -> 0.1487498525 | M4: =AVERAGE(M6:T6) -> 35.1725 | N4: =MEDIAN(M6:T6) -> 35.69 | W4: =_xlfn.STDEV.S(X6:AD6)/AVERAGE(X6:AD6) -> 0.08396956355 | X4: =AVERAGE(X6:AE6) -> 467.840625 | Y4: =MEDIAN(X6:AE6) -> 454.015
A5: OBS: Preço sem BDI e sem motorista BDI= | F5: Preço FIPE - fevereiro/2023 | K5: PRODUTO | L5: MENOR | M5: COT. 1 | N5: COT. 2 | O5: COT. 3 | P5: COT. 4 | Q5: COT. 5 | R5: COT. 6 | S5: COT. 7 | T5: COT. 8 | V5: PRODUTO | W5: MENOR | X5: COT. 1 | Y5: COT. 2 | Z5: COT. 3 | AA5: COT. 4 | AB5: COT. 5 | AC5: COT. 6 | AD5: COT. 7 | AE5: COT. 8
A6: Veículo tipo pick-up, cabine dupla - 2.0 16V 4x4 diesel Aut. | F6: Toro Endurance 2.0 16V 4x4 Diesel Aut. | G6: Toro Freedom 2.0 16V 4x4 TB Diesel Aut. | H6: Toro Volcano 2.0 16V 4x4 TB Diesel Aut. | I6: Toro Ranch 2.0 16V 4x4 TB Diesel Aut. | K6: LUBRIFICANTE 5W30 | L6: =SMALL(M4:N4,1) -> 35.1725 | M6: 29.64 | N6: 27.9 | O6: 38 | P6: 39.98 | Q6: 39.85 | R6: 33.38 | S6: 31.35 | T6: 41.28 | V6: Pneu 225/65 R17 | W6: =SMALL(X4:Y4,1) -> 454.015 | X6: 470 | Y6: 429.73 | Z6: 405.9 | AA6: 449.32 | AB6: 458.71 | AC6: 523.9 | AD6: =1718.94/4 -> 429.735 | AE6: 575.43
C7: Custo Mensal (R$): | D7: =D48 -> 7159.58281 | F7: 154231 | G7: 186943 | H7: 199555 | I7: 183272
C8: Custo Diária (R$): | D8: =D7/22 -> 325.4355823
C9: Custo Horário (R$): | D9: =D7/176 -> 40.67944779
A10: A | C10: Depreciação mensal do equipamento
A11: A1 | C11: Preço de Aquisição | D11: =SMALL(G4:H4,1) -> 181000.25
A12: A2 | C12: Tempo previsto de vida útil (meses) | D12: 36
A13: A3 | C13: Previsão de recup. Na venda do bem usado | D13: 0.4
A14: A4 | C14: Custo mensal [A1-(A3xA1)]/A2 | D14: =(D11-(D13*D11))/D12 -> 3016.670833
A15: B | C15: Juros pelo Capital empregado
A16: B1 | C16: Taxa mensal de Juros * | D16: =POWER(1+D54,1/12)-1 -> 0.01079391108
A17: B2 | C17: Juros s/depreciação/aluguel (B1xA4) | D17: =D16*D14 -> 32.56167674
A18: C | C18: Conservação e manutenção ** | D18: 0.75
A19: C1 | C19: Taxa de gastos s/a deprec. Inc. seguros (%) | D19: =D18 -> 0.75
A20: C2 | C20: Incidência mensal (C1xA4) | D20: =D19*D14 -> 2262.503125
A21: D | C21: Combustível
A22: D1 | C22: Média mensal de quilômetro por veículo | D22: =130*22 -> 2860
A23: D2 | C23: Preço do litro de combustível | D23: =G60 -> 5.79
A24: D3 | C24: Quilômetros rodados com um litro combustivel | D24: 10
A25: D4 | C25: Combustivel (D1/D3)*D2 | D25: =(D22/D24)*D23 -> 1655.94
A26: E | C26: Lubrificantes
A27: E1 | C27: Quilometragem do Contrato (D1*12) | D27: =D22*36 -> 102960
A28: E2 | C28: Franquia por troca de óleo (km) | D28: 10000
A29: E3 | C29: Preço do litro de óleo | D29: =L6 -> 35.1725
A30: E4 | C30: Quantidade de litros de óleo por troca | D30: 5
A31: E5 | C31: Quantidade de dias do Contrato | D31: =365*3 -> 1095
A32: E6 | C32: Lubrificantes E = (E1*E3*E4*30)/E2*E5 | D32: =(D27*D29*D30*30)/(D28*D31) -> 49.60767945
A33: F | C33: Pneus
A34: F1 | C34: Quilometragem do Contrato | D34: =D27 -> 102960
A35: F2 | C35: Vida do Pneu em quilômetros | D35: 45000
A36: F3 | C36: Quantidade de pneus | D36: 5
A37: F4 | C37: Preço do Pneu | D37: =W6 -> 454.015
A38: F5 | C38: Quantidade de dias do contrato | D38: =D31 -> 1095
A39: F6 | C39: Pneus = (F1*F3*F4*30)/(F2*F5) | D39: =(D34*D36*D37*30)/(D35*D38) -> 142.2994959
A40: G | C40: Motorista
A41: G1 | C41: Salário com encargos sociais | D41: 4185.11
A42: H | C42: Custo Mensal
C43: Sem Motorista (A4+B2+C2+D4+E6+F6) | D43: =D14+D17+D20+D25+D32+D39 -> 7159.58281
C44: Com Motorista (A4+B2+C2+D4+E6+F6+G1) | D44: =D14+D17+D20+D25+D32+D39+D41 -> 11344.69281
A45: I | C45: Custo Direto p/ km Rodado
C46: Sem Motorista | D46: =D43/D22 -> 2.503350633
C47: Com Motorista | D47: =D44/D22 -> 3.966675808
A48: J | C48: Preço cobrado sem BDI | D48: =D43*(1+D5) -> 7159.58281
A49: J1 | C49: Sem Motorista | D49: =D48 -> 7159.58281
A50: J2 | C50: Com Motorista | D50: =D44 -> 11344.69281 | J50: https://www.google.com/search?q=lubrificante+5w30&sxsrf=AJOqlzUM514L6uswJHb1jIGpGgXchTtV5A:1677092590843&source=lnms&tbm=shop&sa=X&sqi=2&ved=2ahUKEwj_vYfh6Kn9AhVMBrkGHRT6Bv4Q_AUoAXoECAEQAw&biw=1600&bih=757&dpr=1 | U50: https://www.google.com/search?q=pneu+225%2F65+R17&sa=X&biw=1600&bih=757&tbm=shop&sxsrf=AJOqlzWsb-d4PS1_OUOEhKmRc2RbtSg3RQ%3A1677092596279&ei=9Gb2Y9K5ENTa5OUPvLykGA&ved=0ahUKEwjSg9Pj6Kn9AhVULbkGHTweCQMQ4dUDCAg&uact=5&oq=pneu+225%2F65+R17&gs_lcp=Cgtwcm9kdWN0cy1jYxADMgsIABCABBCxAxCDATIFCAAQgAQyBwgAEIAEEAoyBwgAEIAEEAoyBwgAEIAEEAoyBwgAEIAEEAoyBwgAEIAEEAoyBQgAEIAEMgcIABCABBAKMgcIABCABBAKOgQIIxAnOgQIABBDSgQIQRgAUABYoTJgqUBoAHAAeACAAdIFiAGUKZIBDTAuMi42LjIuMi4yLjGYAQCgAQHAAQE&sclient=products-cc
C52: OBSERVAÇÕES:
A53: * | C53: Calculado com base na taxa SELIC ABRIL/2023 - 13,75 % a.a
C54: Taxa de Juros Selic — Português (Brasil) (www.gov.br) | D54: 0.1375
A55: ** | C55: Conservação e manutenção - é calculado com o uso de um coeficiente multiplicador "k", conforme tabela abaixo, sobre a
C56: depreciação mensal do equipamento (Item A da planilha de composição de preços). Os valores de K são fornecidos por
C57: fabricantes.
C58: Metodologia conforme a bibliografia "Como Preparar Orçamentos de Obras", 3 edição, Aldo Dórea Mattos, 2019.
C59: Preço calculado sem BDI
F60: PREÇO DO DIESEL | G60: 5.79
F84: https://precos.petrobras.com.br/sele%C3%A7%C3%A3o-de-estados-diesel

Sheet COT. VANT (hidden)
A2: COTAÇÃO ORÇAMENTÁRIA DE LEVANTAMENTO PLANIALTIMÉTRICO POR MEIO DE VANT PARA ÁREA NA CIDADE DE PINDARÉ-MIRIM-MA
A3: MÊS/ANO DE REFERÊNCIA | B3: ÁREA DO PROJETO [ha] | C3: EMPRESA | D3: LOCALIDADE | E3: WEBSITE | F3: CONTATO | G3: AVALIAÇÃO TÉCNICA DA PROPOSTA | H3: PREÇO | I3: PREÇO UNITÁRIO | J3: RELAÇÃO CUSTO-BENEFÍCIO
A4: 2022-09-01 | B4: 50 | C4: DRONES SOLUTION | D4: SALVADOR-BA | E4: http://www.dronessolution.com.br/ | F4: contato@dronessolution.com.br | G4: SATISFATÓRIA | H4: 9800 | I4: =(H4/B4) -> 196 | J4: A
A5: 2022-09-01 | B5: 50 | C5: ERG | D5: BELO HORIZONTE-MG | E5: http://www.ergbh.com.br/ | F5: comercial@ergbh.com.br | G5: SATISFATÓRIA | H5: 13240.5 | I5: =(H5/B5) -> 264.81 | J5: B
A6: 2022-09-01 | B6: 50 | C6: CEPEMAR | D6: VITÓRIA-ES | E6: http://www.cepemar.com.br/ | F6: comercial@cepemar.com.br | G6: SATISFATÓRIA | H6: 63000 | I6: 1260 | J6: C
A8: Observações | B8: 1. Na cotação acima já estão iclusos: Planejamento Aerotogramétrico, Voo Aerotoforamétrico, Apoio de Campo, Aerotriangulação, Restituição, MDT, MDS, Ortofotos, Edição/Revisão e Entrega Final. | G8: CV com todos valores: | H8: =STDEVA(H4:H6)/AVERAGE(H4:H6) -> 1.038054932
B9: 2. INCONCLUSIVA: não apresentou o orçamento de forma detalhada. | G9: CV tirando o maior valor: | H9: =STDEVA(H4:H5)/AVERAGE(H4:H5) -> 0.2111760492
B10: 3. SATISFATÓRIA: apresentou, no mínimo, os requisitos básicos de um orçamento. | G10: Média tirando o maior valor: | H10: =AVERAGE(H4:H5) -> 11520.25 | I10: Valor para a área de 65ha
B11: 4-Para o valor do serviço de Vant, considerou-se a média tirando o maior valor das cotações recebidas, pois o CV (coeficiente de variação) está muito elevado com as 3 cotaçoes.
B12: 5-As cotações recebidas foram utilizadas para o serviço de levantamento do Ramal do Manga no Amapá, referente a um trecho de 6,5km de rodovia, com área total estimadade de 65ha.
B13: Dessa forma, para a cotação representativa deste serviço, realizou-se a parametrização proporcional a área de estudo do serviço a ser realizado.
B15: Portanto:
C16: =I10 -> Valor para a área de 65ha | D16: =H10 -> 11520.25
C17: Valor unitário para a área de 1ha | D17: =D16/65 -> 177.2346154

Sheet Planilha de Medição
B1: PLANILHA DE MEDIÇÃO
B5: # | D5: DESCRIÇÃO | E5: % | F5: P TOTAL
B6: 1 | C6: 1 | D6: Estudos Básicos (EB) | E6: =F6/$F$30 -> 0.2353334724 | F6: ='CRO1_Ins-Pro'!H18 -> 52735.25462
B7: 1 | C7: 1.1 | D7: Serviços Topográficos/Cartográficos | E7: =F7/F6 -> 0.1079587089 | F7: ='CRO1_Ins-Pro'!F15 -> 5693.23
B8: 1 | C8: 1.2 | D8: Serviços Geológicos/Geotécnicos | E8: =F8/F6 -> 0.5243324036 | F8: ='CRO1_Ins-Pro'!F16+'CRO1_Ins-Pro'!F17 -> 27650.80281
B9: 1 | C9: 1.3 | D9: Estudos Hidrológicos e Hidrogeológicos | E9: 0.038 | F9: =E9*F6 -> 2003.939675
B10: 1 | C10: 1.4 | D10: Relatório de Avaliação Fundiária | E10: =1-E7-E8-E9 -> 0.3297088875 | F10: =E10*F6 -> 17387.28213
B11: 2 | C11: 2 | D11: Estudo de Viabilidade Técnica, Econômica e Ambiental (EVTEA) | E11: =F11/$F$30 -> 0.1850400939 | F11: ='CRO1_Ins-Pro'!I18 -> 41465.14462
B12: 2 | C12: 2.1 | D12: Diagnóstico e Prognóstico | E12: 0.2185 | F12: =E12*F11 -> 9060.134099
B13: 2 | C13: 2.2 | D13: Análise da Viabilidade Ambiental | E13: 0.1856 | F13: =E13*F11 -> 7695.930841
B14: 2 | C14: 2.3 | D14: Avaliação Socioeconômica | E14: 0.2258 | F14: =E14*F11 -> 9362.829655
B15: 2 | C15: 2.4 | D15: Análise Técnica-Econômica-Ambiental | E15: =1-SUM(E12:E14) -> 0.3701 | F15: =E15*F11 -> 15346.25002
B16: 3 | C16: 3 | D16: Projeto Básico (PB) | E16: =F16/$F$30 -> 0.4275955758 | F16: ='CRO1_Ins-Pro'!J18 -> 95818.76024
B17: 3 | C17: 3.1 | D17: Projeto de Arquitetura | E17: =16.87%+14.13% -> 0.31 | F17: =E17*$F$16 -> 29703.81567
B18: 3 | C18: 3.3 | D18: Projeto de Paisagismo | E18: 0.0512 | F18: =E18*$F$16 -> 4905.920524
B19: 3 | C19: 3.4 | D19: Projeto de Terraplenagem | E19: 0.1269 | F19: 12159.40067
B20: 3 | C20: 3.5 | D20: Projeto de Pavimentação | E20: 0.1068 | F20: 10233.44359
B21: 3 | C21: 3.6 | D21: Projeto de Drenagem | E21: 0.1001 | F21: 9591.4579
B22: 3 | C22: 3.7 | D22: Projeto de Fundações | E22: 0.0564 | F22: 5404.178077
B23: 3 | C23: 3.8 | D23: Projeto de Estruturas | E23: 0.0489 | F23: 4685.537376
B24: 3 | C24: 3.9 | D24: Projeto de Instalações Hidrossanitárias | E24: 0.0496 | F24: 4752.610508
B25: 3 | C25: 3.10 | D25: Projeto de Instalações Elétricas | E25: 0.0555 | F25: 5317.941193
B26: 3 | C26: 3.11 | D26: Projeto de Iluminação | E26: 0.0487 | F26: 4666.373624
B27: 3 | C27: 3.12 | D27: Memorial Descritivo e Relatório Final | E27: =1-SUM(E17:E26) -> 0.0459 | F27: 4398.081095
B28: 4 | C28: 4 | D28: Projeto Executivo (PE) | E28: =F28/$F$30 -> 0.1520308579 | F28: ='CRO1_Ins-Pro'!K18 -> 34068.19234
F30: =F28+F16+F11+F6 -> 224087.3518

Sheet Cronograma Físico-Financeiro
B1: CRONOGRAMA FÍSICO-FINANCEIRO
D4: Mês 1 | E4: Mês 2 | F4: Mês 3 | G4: Mês 4 | H4: Mês 5
B5: Estudos Básicos (EB) | C5: ='CRO1_Ins-Pro'!H18 -> 52735.25462 | D5: =D6*$C$5 -> 42188.20369 | E5: 10547.05092 | F5: 0 | G5: 0 | H5: 0 | I5: =SUM(D5:H5) -> 52735.25462
D6: 0.8 | E6: 0.2 | I6: 1
B7: Estudo de Viabilidade Técnica, Econômica e Ambiental (EVTEA) | C7: ='CRO1_Ins-Pro'!I18 -> 41465.14462 | D7: =D8*$C$7 -> 20732.57231 | E7: 20732.57231 | F7: 0 | G7: 0 | H7: 0 | I7: 41465.14462
D8: 0.5 | E8: 0.5 | I8: 1
B9: Projeto Básico (PB) | C9: ='CRO1_Ins-Pro'!J18 -> 95818.76024 | D9: =D10*$C$9 -> 0 | E9: 0 | F9: 47909.38012 | G9: 47909.38012 | H9: 0 | I9: 95818.76024
F10: 0.5 | G10: 0.5 | I10: 1
B11: Projeto Executivo (PE) | C11: ='CRO1_Ins-Pro'!K18 -> 34068.19234 | D11: =D12*$C$11 -> 0 | E11: 0 | F11: 0 | G11: 0 | H11: 34068.19234 | I11: 34068.19234
H12: 1 | I12: 1
B14: NO MÊS | D14: =D5+D7+D9+D11 -> 62920.776 | E14: 31279.62323 | F14: 47909.38012 | G14: 47909.38012 | H14: 34068.19234 | I14: =SUM(D14:H14) -> 224087.3518
D15: =D14/SUM($C$5:$C$12) -> 0.2807868248 | E15: 0.1395867414 | F15: 0.2137977879 | G15: 0.2137977879 | H15: 0.1520308579 | I15: =SUM(D15:H15) -> 1
B16: ACUMULADO | D16: =D14 -> 62920.776 | E16: =D16+E14 -> 94200.39924 | F16: 142109.7794 | G16: 190019.1595 | H16: 224087.3518
D17: =D15 -> 0.2807868248 | E17: 0.4203735663 | F17: 0.6341713542 | G17: 0.8479691421 | H17: 1
